lending/lending_fUSD_20240504
["ID","MTS","AMOUNT","RATE_DAILY","PERIOD"]
[325422042,1714860660396,-1118.92,0.00041095,30]
[325422043,1714860660405,-1031.35,0.00041095,30]
[325422044,1714860660415,-500.0,0.00041095,30]
[325422045,1714860660424,-1292.54,0.00041095,30]
[325422046,1714860660435,-3652.76,0.00041095,30]
[325422047,1714860660445,-500.0,0.00041095,30]
[325422048,1714860660455,-1560.39,0.00041095,2]
[325422049,1714860660464,-1740.9,0.00041095,30]
[325422050,1714860660474,-4326.37,0.00041095,30]
[325422051,1714860660484,-3796.87,0.00041095,30]
[325422052,1714860660494,-2333.41,0.00041095,30]
[325422053,1714860660504,-500.0,0.00041095,30]
[325422054,1714860660513,-1021.85,0.00041095,30]
[325422055,1714860660523,-500.0,0.00041095,30]
[325422056,1714860660533,-1705.31,0.00041095,30]
[325422057,1714860660542,-1009.99,0.00041095,30]
[325422058,1714860660552,-2292.99,0.00041095,30]
[325422059,1714860660562,-500.0,0.00041095,30]
[325422060,1714860660572,-500.0,0.00041095,30]
[325422061,1714860660843,-500.0,0.00041095,30]
[325422062,1714860660855,-1292.11,0.00041095,30]
[325422063,1714860660865,-889.54,0.00041095,30]
[325422064,1714860660875,-1855.37,0.00041095,30]
[325422065,1714860660887,-500.0,0.00041095,30]
[325422066,1714860660899,-2267.61,0.00041095,2]
[325422067,1714860660910,-500.0,0.00041095,30]
[325422068,1714860660920,-500.0,0.00041095,30]
[325422069,1714860660929,-500.98604982,0.00041095,30]
[325422070,1714860660939,-500.0,0.00041095,30]
[325422071,1714860660950,-500.0,0.00041095,30]
[325422072,1714860660960,-849.97,0.00041095,30]
[325422073,1714860660971,-502.73736322,0.00041095,30]
[325422074,1714860660982,-500.0,0.00041095,30]
[325422075,1714860660992,-3511.49,0.00041095,30]
[325422076,1714860661002,-1020.46,0.00041095,30]
[325422077,1714860661012,-3817.61,0.00041095,30]
[325422078,1714860661023,-3800.4,0.00041095,30]
[325422079,1714860661035,-500.0,0.00041095,30]
[325422080,1714860661044,-500.0,0.00041095,30]
[325422081,1714860661055,-9463.53,0.00041095,30]
[325422082,1714860661065,-1818.05,0.00041095,30]
[325422083,1714860661076,-500.0,0.00041095,30]
[325422084,1714860661087,-1721.39,0.00041095,30]
[325422085,1714860661097,-500.0,0.00041095,30]
[325422086,1714860661106,-500.0,0.00041095,30]
[325422087,1714860661115,-9514.77,0.00041095,30]
[325422088,1714860661124,-235.62631837,0.00041095,30]
[325422089,1714860661134,-75755.73,0.00041095,30]
[325422090,1714860661144,-26890.17,0.00041095,30]
[325422091,1714860661154,-558.81,0.00041095,30]
[325422092,1714860661163,-500.0,0.00041095,30]
[325422093,1714860661174,-500.0,0.00041095,30]
[325422094,1714860661185,-500.0,0.00041095,30]
[325422095,1714860661195,-890.91,0.00041095,30]
[325422096,1714860661206,-500.0,0.00041095,30]
[325422097,1714860661216,-790.45,0.00041095,30]
[325422098,1714860661225,-630.79,0.00041095,30]
[325422099,1714860661235,-528.42,0.00041095,30]
[325422100,1714860661245,-5349.07,0.00041095,30]
[325422101,1714860661256,-500.0,0.00041095,30]
[325422102,1714860661266,-500.0,0.00041095,31]
[325422103,1714860661276,-1514.34,0.00041095,30]
[325422104,1714860661287,-500.0,0.00041095,32]
[325422105,1714860661297,-500.0,0.00041095,30]
[325422106,1714860661311,-1249.4,0.00041095,30]
[325422107,1714860661321,-1494.76,0.00041095,30]
[325422108,1714860661332,-155.0,0.00041095,30]
[325422109,1714860661343,-1507.35,0.00041095,30]
[325422110,1714860661355,-500.0,0.00041095,30]
[325422111,1714860661365,-500.0,0.00041095,30]
[325422112,1714860661375,-17077.21,0.00041095,30]
[325422113,1714860661386,-7602.11,0.00041095,30]
[325422114,1714860661396,-500.0,0.00041095,30]
[325422115,1714860661406,-501.50874963,0.00041095,30]
[325422116,1714860661416,-35194.56,0.00041095,30]
[325422117,1714860661425,-1079.46,0.00041095,30]
[325422118,1714860661435,-1291.0,0.00041095,30]
[325422119,1714860661446,-4322.67,0.00041095,30]
[325422120,1714860661456,-907.96,0.00041095,30]
[325422121,1714860661467,-690.61,0.00041095,30]
[325422122,1714860661476,-503.60205756,0.00041095,30]
[325422123,1714860661487,-1620.77,0.00041095,30]
[325422124,1714860661498,-1613.66,0.00041095,30]
[325422125,1714860661508,-500.0,0.00041095,30]
[325422126,1714860661518,-2986.26,0.00041095,30]
[325422127,1714860661528,-2045.83,0.00041095,30]
[325422128,1714860661540,-500.0,0.00041095,2]
[325422129,1714860661549,-2094.68,0.00041095,30]
[325422130,1714860661560,-1291.22,0.00041095,30]
[325422131,1714860661569,-847.95,0.00041095,30]
[325422132,1714860661578,-1755.33,0.00041095,30]
[325422133,1714860661588,-500.0,0.00041095,30]
[325422134,1714860661597,-500.6813257,0.00041095,30]
[325422135,1714860661606,-5903.87,0.00041095,30]
[325422136,1714860661615,-500.0,0.00041095,30]
[325422137,1714860661625,-3388.18,0.00041095,30]
[325422138,1714860661634,-3890.74,0.00041095,30]
[325422139,1714860661643,-1892.29,0.00041095,30]
[325422140,1714860661652,-500.0,0.00041095,30]
[325422141,1714860661661,-863.48,0.00041095,30]
[325422142,1714860661672,-500.0,0.00041095,30]
[325422143,1714860661681,-7269.21,0.00041095,30]
[325422144,1714860661692,-500.0,0.00041095,30]
[325422145,1714860661702,-898.15,0.00041095,30]
[325422146,1714860661711,-500.0,0.00041095,30]
[325422147,1714860661720,-500.0,0.00041095,31]
[325422148,1714860661730,-5700.72,0.00041095,30]
[325422149,1714860661740,-500.0,0.00041095,30]
[325422150,1714860661749,-500.0,0.00041095,32]
[325422151,1714860661759,-500.0,0.00041095,33]
[325422152,1714860661769,-395.89,0.00041095,34]
[325422153,1714860661779,-5043.6,0.00041095,30]
[325422154,1714860661788,-500.0,0.00041095,30]
[325422155,1714860661799,-2016.42,0.00041095,30]
[325422156,1714860661808,-500.0,0.00041095,30]
[325422157,1714860661818,-500.0,0.00041095,30]
[325422158,1714860661828,-1230.19,0.00041095,30]
[325422159,1714860661839,-500.0,0.00041095,30]
[325422160,1714860661849,-2519.18,0.00041095,30]
[325422161,1714860661859,-500.0,0.00041095,30]
[325422162,1714860661868,-2873.98,0.00041095,30]
[325422163,1714860661878,-4148.51,0.00041095,30]
[325422164,1714860661888,-500.0,0.00041095,30]
[325422165,1714860661897,-500.0,0.00041095,30]
[325422166,1714860661907,-500.0,0.00041095,30]
[325422167,1714860661916,-1894.74,0.00041095,30]
[325422168,1714860661926,-500.0,0.00041095,30]
[325422169,1714860661936,-3112.75,0.00041095,30]
[325422170,1714860661945,-500.0,0.00041095,30]
[325422171,1714860661955,-3498.16,0.00041095,30]
[325422172,1714860661964,-500.0,0.00041095,30]
[325422173,1714860661974,-645.08545267,0.00041095,30]
[325422174,1714860661984,-670.02,0.00041095,30]
[325422175,1714860661994,-1088.05,0.00041095,30]
[325422176,1714860662004,-500.0,0.00041095,30]
[325422177,1714860662013,-500.0,0.00041095,30]
[325422178,1714860662022,-721.46,0.00041095,30]
[325422179,1714860662032,-1848.92,0.00041095,30]
[325422180,1714860662041,-500.0,0.00041095,30]
[325422181,1714860662051,-4622.18,0.00041095,30]
[325422182,1714860662061,-3953.09,0.00041095,30]
[325422183,1714860662071,-1892.55,0.00041095,30]
[325422184,1714860662080,-1426.46,0.00041095,30]
[325422185,1714860662090,-500.0,0.00041095,30]
[325422186,1714860662100,-764.41,0.00041095,30]
[325422187,1714860662111,-922.62,0.00041095,30]
[325422188,1714860662121,-2122.37,0.00041095,30]
[325422189,1714860662131,-500.0,0.00041095,30]
[325422190,1714860662140,-873.9,0.00041095,30]
[325422191,1714860662149,-500.0,0.00041095,30]
[325422192,1714860662159,-500.0,0.00041095,30]
[325422193,1714860662169,-5539.37,0.00041095,30]
[325422194,1714860662178,-19479.58,0.00041095,30]
[325422195,1714860662187,-1841.16,0.00041095,30]
[325422196,1714860662196,-10556.74,0.00041095,30]
[325422197,1714860662206,-2091.91,0.00041095,30]
[325422198,1714860662215,-501.83951843,0.00041095,30]
[325422199,1714860662225,-500.0,0.00041095,30]
[325422200,1714860662236,-4069.14,0.00041095,30]
[325422201,1714860662245,-22904.63,0.00041095,30]
[325422202,1714860662257,-668.31,0.00041095,30]
[325422203,1714860662268,-3464.63,0.00041095,30]
[325422204,1714860662279,-500.0,0.00041095,30]
[325422205,1714860662289,-500.0,0.00041095,30]
[325422206,1714860662300,-500.0,0.00041095,30]
[325422207,1714860662313,-500.0,0.00041095,30]
[325422208,1714860662323,-500.0,0.00041095,30]
[325422209,1714860662333,-500.0,0.00041095,30]
[325422210,1714860662343,-501.29144812,0.00041095,30]
[325422211,1714860662352,-7852.74,0.00041095,21]
[325422212,1714860662362,-1035.26,0.00041095,30]
[325422213,1714860662372,-500.0,0.00041095,30]
[325422214,1714860662384,-500.0,0.00041095,30]
[325422215,1714860662394,-500.0,0.00041095,30]
[325422216,1714860662403,-209.96293824,0.00041095,30]
[325422217,1714860662412,-981.12,0.00041095,30]
[325422218,1714860662422,-500.0,0.00041095,30]
[325422219,1714860662431,-9095.94,0.00041095,30]
[325422220,1714860662441,-500.0,0.00041095,30]
[325422221,1714860662450,-7040.64,0.00041095,30]
[325422222,1714860662459,-4874.31,0.00041095,30]
[325422223,1714860662468,-880.87,0.00041095,30]
[325422224,1714860662478,-500.0,0.00041095,30]
[325422225,1714860662488,-299.45114458,0.00041095,30]
[325422226,1714860662498,-1573.01,0.00041095,30]
[325422227,1714860662508,-1468.06,0.00041095,30]
[325422228,1714860662519,-11460.83,0.00041095,30]
[325422229,1714860662529,-2289.52,0.00041095,30]
[325422230,1714860662539,-888.0,0.00041095,30]
[325422231,1714860662549,-500.0,0.00041095,30]
[325422232,1714860662558,-815.73,0.00041095,30]
[325422233,1714860662568,-500.0,0.00041095,30]
[325422234,1714860662577,-1109.68,0.00041095,30]
[325422235,1714860662587,-4406.69,0.00041095,30]
[325422236,1714860662596,-1859.43,0.00041095,30]
[325422237,1714860662607,-500.0,0.00041095,30]
[325422238,1714860662617,-500.0,0.00041095,30]
[325422239,1714860662626,-16044.65,0.00041095,30]
[325422240,1714860662635,-500.0,0.00041095,30]
[325422241,1714860662645,-9344.95,0.00041095,30]
[325422242,1714860662655,-2785.01,0.00041095,30]
[325422243,1714860662664,-844.43,0.00041095,30]
[325422244,1714860662673,-500.0,0.00041095,30]
[325422245,1714860662683,-782.17,0.00041095,30]
[325422246,1714860662693,-5710.19,0.00041095,30]
[325422247,1714860662702,-499.28740089,0.00041095,30]
[325422248,1714860662711,-500.0,0.00041095,30]
[325422249,1714860662720,-500.0,0.00041095,30]
[325422250,1714860662730,-797.43,0.00041095,30]
[325422251,1714860662740,-1319.72,0.00041095,30]
[325422252,1714860662751,-366.03963624,0.00041095,30]
[325422253,1714860662760,-500.0,0.00041095,30]
[325422254,1714860662770,-608.59,0.00041095,30]
[325422255,1714860662780,-500.0,0.00041095,30]
[325422256,1714860662790,-2014.39,0.00041095,30]
[325422257,1714860662799,-1511.2,0.00041095,30]
[325422258,1714860662809,-1856.3,0.00041095,30]
[325422259,1714860662818,-1790.93,0.00041095,30]
[325422260,1714860662828,-500.0,0.00041095,30]
[325422261,1714860662837,-500.0,0.00041095,30]
[325422262,1714860662847,-1987.18,0.00041095,30]
[325422263,1714860662856,-9336.17,0.00041095,30]
[325422264,1714860662866,-4661.54,0.00041095,30]
[325422265,1714860662875,-1543.27,0.00041095,30]
[325422266,1714860662884,-800.0,0.00041095,30]
[325422267,1714860662893,-919.52,0.00041095,30]
[325422268,1714860662903,-1728.41,0.00041095,30]
[325422269,1714860662912,-500.94801303,0.00041095,30]
[325422270,1714860662921,-1932.1,0.00041095,30]
[325422271,1714860662931,-500.0,0.00041095,30]
[325422272,1714860662940,-500.0,0.00041095,30]
[325422273,1714860662950,-16171.61,0.00041095,30]
[325422274,1714860662959,-500.0,0.00041095,30]
[325422275,1714860662968,-500.0,0.00041095,30]
[325422276,1714860662977,-1608.94,0.00041095,30]
[325422277,1714860662987,-500.0,0.00041095,30]
[325422278,1714860662996,-1368.58,0.00041095,30]
[325422279,1714860663005,-500.0,0.00041095,30]
[325422280,1714860663014,-500.0,0.00041095,30]
[325422281,1714860663024,-500.0,0.00041095,30]
[325422282,1714860663034,-500.0,0.00041095,30]
[325422283,1714860663043,-2312.23,0.00041095,30]
[325422284,1714860663052,-4447.62,0.00041095,30]
[325422285,1714860663061,-3436.04,0.00041095,30]
[325422286,1714860663070,-500.0,0.00041095,30]
[325422287,1714860663080,-6869.58,0.00041095,30]
[325422288,1714860663089,-2000.0,0.00041095,120]
[325422289,1714860663099,-5682.38,0.00041095,30]
[325422290,1714860663108,-10291.64,0.00041095,30]
[325422291,1714860663117,-500.0,0.00041095,30]
[325422292,1714860663127,-3642.06,0.00041095,30]
[325422293,1714860663137,-500.92433487,0.00041095,30]
[325422294,1714860663146,-500.0,0.00041095,30]
[325422295,1714860663155,-500.0,0.00041095,30]
[325422296,1714860663165,-382.1,0.00041095,30]
[325422297,1714860663174,-500.0,0.00041095,30]
[325422298,1714860663284,-500.0,0.00041095,30]
[325422299,1714860663297,-685.25,0.00041095,30]
[325422300,1714860663314,-500.0,0.00041095,30]
[325422301,1714860663323,-685.71,0.00041095,30]
[325422302,1714860663332,-3703.13,0.00041095,30]
[325422303,1714860663342,-529.61644285,0.00041095,30]
[325422304,1714860663353,-500.0,0.00041095,30]
[325422305,1714860663363,-1090.64,0.00041095,30]
[325422306,1714860663372,-1090.64,0.00041095,31]
[325422307,1714860663381,-1081.56,0.00041095,30]
[325422308,1714860663393,-3720.15,0.00041095,30]
[325422309,1714860663403,-1090.64,0.00041095,32]
[325422310,1714860663412,-1090.64,0.00041095,33]
[325422311,1714860663421,-500.0,0.00041095,30]
[325422312,1714860663433,-1090.64,0.00041095,34]
[325422313,1714860663442,-1090.64,0.00041095,35]
[325422314,1714860663452,-1090.64,0.00041095,36]
[325422315,1714860663462,-1699.87,0.00041095,30]
[325422316,1714860663472,-1090.64,0.00041095,37]
[325422317,1714860663482,-3111.31,0.00041095,30]
[325422318,1714860663491,-1090.64,0.00041095,38]
[325422319,1714860663500,-1322.89,0.00041095,30]
[325422320,1714860663509,-1090.64,0.00041095,39]
[325422321,1714860663519,-979.36,0.00041095,30]
[325422322,1714860663529,-1090.64,0.00041095,40]
[325422323,1714860663538,-1090.64,0.00041095,41]
[325422324,1714860663548,-500.0,0.00041095,30]
[325422325,1714860663557,-1090.64,0.00041095,42]
[325422326,1714860663567,-1090.64,0.00041095,43]
[325422327,1714860663577,-4152.42,0.00041095,30]
[325422328,1714860663586,-1090.64,0.00041095,44]
[325422329,1714860663595,-1090.64,0.00041095,45]
[325422330,1714860663605,-500.0,0.00041095,30]
[325422331,1714860663615,-1730.37,0.00041095,30]
[325422332,1714860663626,-1090.64,0.00041095,46]
[325422333,1714860663635,-1090.64,0.00041095,47]
[325422334,1714860663646,-1090.64,0.00041095,48]
[325422335,1714860663656,-890.55,0.00041095,30]
[325422336,1714860663665,-1090.64,0.00041095,49]
[325422337,1714860663675,-626.08,0.00041095,30]
[325422338,1714860663684,-1919.94,0.00041095,30]
[325422339,1714860663695,-1090.64,0.00041095,49]
[325422340,1714860663704,-1090.64,0.00041095,49]
[325422341,1714860663713,-370.05178535,0.00041095,30]
[325422342,1714860663724,-1090.64,0.00041095,49]
[325422343,1714860663733,-5126.33,0.00041095,30]
[325422344,1714860663743,-1090.65,0.00041095,49]
[325422345,1714860663752,-500.0,0.00041095,30]
[325422346,1714860663762,-500.0,0.00041095,30]
[325422347,1714860663771,-2419.77,0.00041095,30]
[325422348,1714860663781,-500.0,0.00041095,30]
[325422349,1714860663790,-15411.0,0.00041095,30]
[325422350,1714860663800,-500.0,0.00041095,2]
[325422351,1714860663810,-500.0,0.00041095,30]
[325422352,1714860663819,-890.33,0.00041095,30]
[325422353,1714860663828,-1897.92,0.00041095,30]
[325422354,1714860663838,-5942.95,0.00041095,30]
[325422355,1714860663846,-151.85,0.00041096,2]
[325422356,1714860663857,-150.0,0.00041096,2]
[325422357,1714860663866,-150.0,0.000411,10]
[325422358,1714860663875,-150.0,0.00041101,2]
[325422359,1714860663884,-150.0,0.00041115,2]
[325422360,1714860663893,-150.0,0.00041125,2]
[325422361,1714860663903,-192.05416418,0.00041134,30]
[325422362,1714860663913,-150.0,0.00041135,2]
[325422363,1714860663922,-150.0,0.00041149,2]
[325422364,1714860663931,-150.0,0.00041158,2]
[325422365,1714860663941,-150.0,0.00041176,2]
[325422366,1714860663950,-196.22470865,0.00041209,11]
[325422367,1714860663959,-150.0,0.00041221,2]
[325422368,1714860663969,-11597.76386676,0.00041227,2]
[325422369,1714860663978,-2000.0,0.00041232,29]
[325422370,1714860663989,-150.0,0.00041268,2]
[325422371,1714860663999,-150.0,0.00041281,2]
[325422372,1714860664008,-200.0,0.00041309,15]
[325422373,1714860664018,-500.0,0.00041309,20]
[325422374,1714860664028,-150.0,0.00041309,2]
[325422375,1714860664038,-200.0,0.0004131,15]
[325422376,1714860664048,-200.0,0.0004131,15]
[325422377,1714860664057,-500.0,0.0004131,20]
[325422378,1714860664066,-500.0,0.0004131,20]
[325422379,1714860664075,-200.0,0.0004131,20]
[325422380,1714860664085,-150.0,0.00041315,2]
[325422381,1714860664095,-500.0,0.00041317,30]
[325422382,1714860664105,-150.0,0.00041329,2]
[325422383,1714860664117,-150.0,0.00041335,2]
[325422384,1714860664126,-150.0,0.00041343,2]
[325422385,1714860664135,-150.0,0.00041349,2]
[325422386,1714860664144,-150.0,0.00041349,2]
[325422387,1714860664153,-150.0,0.00041356,2]
[325422388,1714860664162,-482.94344347,0.00041368,7]
[325422389,1714860664171,-482.94344347,0.00041368,7]
[325422390,1714860664180,-500.0,0.00041369,31]
[325422391,1714860664190,-500.0,0.00041369,31]
[325422392,1714860664199,-500.0,0.00041369,31]
[325422393,1714860664208,-189.11650848,0.00041369,31]
[325422394,1714860664218,-500.0,0.00041369,31]
[325422395,1714860664227,-500.0,0.00041369,31]
[325422396,1714860664237,-309.86429829,0.00041369,31]
[325422397,1714860664246,-380.7669546,0.00041369,31]
[325422398,1714860664255,-598.86125346,0.00041369,31]
[325422399,1714860664264,-500.0,0.00041369,31]
[325422400,1714860664274,-500.0,0.00041369,31]
[325422401,1714860664283,-273.30285909,0.00041369,31]
[325422402,1714860664292,-500.0,0.00041369,31]
[325422403,1714860664301,-502.19826596,0.00041369,31]
[325422404,1714860664315,-500.0,0.00041369,31]
[325422405,1714860664324,-269.53218951,0.00041369,31]
[325422406,1714860664333,-500.0,0.00041369,31]
[325422407,1714860664343,-500.0,0.00041369,31]
[325422408,1714860664353,-500.0,0.00041369,31]
[325422409,1714860664362,-500.0,0.00041369,31]
[325422410,1714860664371,-1146.87,0.00041369,31]
[325422411,1714860664382,-1189.5,0.00041369,31]
[325422412,1714860664391,-500.0,0.00041369,31]
[325422413,1714860664401,-500.0,0.00041369,31]
[325422414,1714860664410,-642.69,0.00041369,31]
[325422415,1714860664420,-161.86979476,0.00041369,31]
[325422416,1714860664429,-500.0,0.00041369,31]
[325422417,1714860664439,-1016.22,0.00041369,31]
[325422418,1714860664448,-500.0,0.00041369,31]
[325422419,1714860664457,-500.0,0.00041369,31]
[325422420,1714860664467,-500.0,0.00041369,31]
[325422421,1714860664476,-1274.74,0.00041369,31]
[325422422,1714860664486,-1437.63,0.00041369,31]
[325422423,1714860664494,-1141.74,0.00041369,31]
[325422424,1714860664503,-500.0,0.00041369,31]
[325422425,1714860664513,-500.0,0.00041369,31]
[325422426,1714860664522,-1399.24,0.00041369,31]
[325422427,1714860664531,-1217.23,0.00041369,31]
[325422428,1714860664540,-500.0,0.00041369,31]
[325422429,1714860664550,-500.0,0.00041369,31]
[325422430,1714860664559,-539.12,0.00041369,31]
[325422431,1714860664568,-1006.4,0.00041369,31]
[325422432,1714860664577,-829.69,0.00041369,31]
[325422433,1714860664586,-500.0,0.00041369,31]
[325422434,1714860664595,-500.0,0.00041369,31]
[325422435,1714860664605,-772.85,0.00041369,31]
[325422436,1714860664614,-646.54669334,0.00041369,31]
[325422437,1714860664624,-674.29,0.00041369,31]
[325422438,1714860664633,-500.0,0.00041369,31]
[325422439,1714860664644,-859.35,0.00041369,31]
[325422440,1714860664653,-500.0,0.00041369,31]
[325422441,1714860664663,-500.0,0.00041369,31]
[325422442,1714860664672,-787.3,0.00041369,31]
[325422443,1714860664682,-500.0,0.00041369,31]
[325422444,1714860664691,-500.0,0.00041369,31]
[325422445,1714860664701,-416.02749033,0.00041369,31]
[325422446,1714860664710,-500.0,0.00041369,31]
[325422447,1714860664720,-500.0,0.00041369,31]
[325422448,1714860664729,-500.0,0.00041369,31]
[325422449,1714860664739,-617.23,0.00041369,31]
[325422450,1714860664749,-500.0,0.00041369,31]
[325422451,1714860664760,-722.27,0.00041369,31]
[325422452,1714860664771,-165.34976252,0.00041369,31]
[325422453,1714860664780,-887.58,0.00041369,31]
[325422454,1714860664789,-707.46,0.00041369,31]
[325422455,1714860664798,-500.0,0.00041369,31]
[325422456,1714860664809,-500.0,0.00041369,31]
[325422457,1714860664820,-500.0,0.00041369,31]
[325422458,1714860664830,-500.0,0.00041369,31]
[325422459,1714860664841,-500.0,0.00041369,31]
[325422460,1714860664850,-555.04,0.00041369,31]
[325422461,1714860664860,-500.0,0.00041369,31]
[325422462,1714860664869,-1707.49,0.00041369,31]
[325422463,1714860664879,-677.79,0.00041369,31]
[325422464,1714860664888,-500.0,0.00041369,31]
[325422465,1714860664897,-1296.62,0.00041369,31]
[325422466,1714860664906,-1680.85,0.00041369,31]
[325422467,1714860664916,-670.46,0.00041369,31]
[325422468,1714860664926,-555.88,0.00041369,31]
[325422469,1714860664935,-500.0,0.00041369,31]
[325422470,1714860664943,-795.16,0.00041369,31]
[325422471,1714860664953,-1582.54,0.00041369,31]
[325422472,1714860664962,-500.0,0.00041369,31]
[325422473,1714860664971,-500.0,0.00041369,31]
[325422474,1714860664982,-500.0,0.00041369,31]
[325422475,1714860664992,-600.66167978,0.00041369,31]
[325422476,1714860665002,-1753.15,0.00041369,31]
[325422477,1714860665011,-500.0,0.00041369,31]
[325422478,1714860665021,-500.0,0.00041369,31]
[325422479,1714860665030,-500.0,0.00041369,31]
[325422480,1714860665040,-501.9,0.00041369,31]
[325422481,1714860665049,-1319.96,0.00041369,31]
[325422482,1714860665059,-389.97997343,0.00041369,31]
[325422483,1714860665068,-408.82871994,0.00041369,31]
[325422484,1714860665077,-500.0,0.00041369,31]
[325422485,1714860665087,-975.16,0.00041369,31]
[325422486,1714860665096,-500.0,0.00041369,31]
[325422487,1714860665105,-391.1624403,0.00041369,31]
[325422488,1714860665115,-1689.38,0.00041369,31]
[325422489,1714860665125,-219.23171407,0.00041369,31]
[325422490,1714860665134,-500.0,0.00041369,31]
[325422491,1714860665143,-500.0,0.00041369,31]
[325422492,1714860665153,-500.0,0.00041369,31]
[325422493,1714860665162,-939.84,0.00041369,31]
[325422494,1714860665171,-500.0,0.00041369,31]
[325422495,1714860665180,-1367.71,0.00041369,31]
[325422496,1714860665189,-967.17,0.00041369,31]
[325422497,1714860665199,-716.63,0.00041369,31]
[325422498,1714860665208,-405.40064598,0.00041369,31]
[325422499,1714860665217,-500.0,0.00041369,31]
[325422500,1714860665226,-1554.09,0.00041369,31]
[325422501,1714860665236,-1059.94,0.00041369,31]
[325422502,1714860665245,-844.42,0.00041369,31]
[325422503,1714860665255,-500.0,0.00041369,31]
[325422504,1714860665264,-500.0,0.00041369,31]
[325422505,1714860665273,-1074.12,0.00041369,31]
[325422506,1714860665282,-500.0,0.00041369,31]
[325422507,1714860665291,-757.36,0.00041369,31]
[325422508,1714860665300,-525.11,0.00041369,31]
[325422509,1714860665313,-1113.68,0.00041369,31]
[325422510,1714860665321,-618.55,0.00041369,31]
[325422511,1714860665331,-500.0,0.00041369,31]
[325422512,1714860665340,-785.09,0.00041369,31]
[325422513,1714860665351,-732.81,0.00041369,31]
[325422514,1714860665360,-578.12,0.00041369,31]
[325422515,1714860665369,-500.0,0.00041369,31]
[325422516,1714860665378,-500.0,0.00041369,31]
[325422517,1714860665388,-500.0,0.00041369,31]
[325422518,1714860665398,-623.88,0.00041369,31]
[325422519,1714860665407,-500.0,0.00041369,31]
[325422520,1714860665416,-500.0,0.00041369,31]
[325422521,1714860665425,-630.58615772,0.00041369,31]
[325422522,1714860665435,-500.0,0.00041369,31]
[325422523,1714860665444,-1455.79,0.00041369,31]
[325422524,1714860665454,-500.0,0.00041369,31]
[325422525,1714860665464,-318.00295198,0.00041369,31]
[325422526,1714860665474,-762.76,0.00041369,31]
[325422527,1714860665487,-500.0,0.00041369,31]
[325422528,1714860665496,-500.0,0.00041369,31]
[325422529,1714860665506,-500.0,0.00041369,31]
[325422530,1714860665516,-500.0,0.00041369,31]
[325422531,1714860665526,-765.26,0.00041369,31]
[325422532,1714860665536,-500.0,0.00041369,31]
[325422533,1714860665546,-500.0,0.00041369,31]
[325422534,1714860665557,-582.03,0.00041369,31]
[325422535,1714860665566,-500.0,0.00041369,31]
[325422536,1714860665576,-500.0,0.00041369,31]
[325422537,1714860665586,-596.49,0.00041369,31]
[325422538,1714860665596,-697.98,0.00041369,31]
[325422539,1714860665607,-500.0,0.00041369,31]
[325422540,1714860665616,-835.07,0.00041369,31]
[325422541,1714860665626,-1160.33,0.00041369,31]